bitfinex-derivatives/quotes_ETHF0:USTF0_20250309
["timestamp","ask_amount","ask_price","bid_price","bid_amount"]
[1741552568978,0.97549,2050.6,2050.5,4.18331]
[1741552569369,1.0507,2050.8,2050.5,3.2078]
[1741552569569,0.97546,2050.7,2050.6,0.97547]
[1741552570175,0.97549,2050.6,2050.5,4.18332]
[1741552570374,0.97549,2050.6,2050.5,3.2078]
[1741552570875,1.0507,2050.8,2050.5,4.18331]
[1741552571079,0.97549,2050.6,2050.5,4.18331]
[1741552571280,0.97549,2050.6,2050.5,3.2078]
[1741552572879,1.0507,2050.8,2050.5,3.2078]
[1741552573184,0.97547,2050.7,2050.5,4.18331]
[1741552573684,0.97549,2050.6,2050.5,3.2078]
[1741552576285,5.64649,2050.7,2050.2,4.18344]
[1741552576778,0.97564,2050.3,2050.2,4.18344]
[1741552576983,1.0265,2050.6,2050.2,3.2078]
[1741552577185,0.97559,2050.4,2050.3,0.97561]
[1741552577372,0.97559,2050.4,2050.2,4.18346]
[1741552577582,0.97564,2050.3,2050.2,4.18346]
[1741552578480,0.97564,2050.3,2050.2,3.2078]
[1741552578783,0.97561,2050.4,2050.2,3.2078]
[1741552579188,0.97561,2050.4,2050.2,4.18347]
[1741552579388,0.97564,2050.3,2050.2,3.2078]
[1741552582991,0.97573,2050.1,2050.0,0.00730442]
[1741552588285,1.97033,2050.1,2050.0,0.00730442]
[1741552588894,0.97583,2049.9,2049.8,3.2078]
[1741552589391,0.97583,2049.9,2049.4,1.98443]
[1741552589392,0.97602,2049.5,2049.4,3.2078]
[1741552589583,2.43999,2049.6,2049.1,0.97619]
[1741552589784,0.9809,2049.4,2049.0,3.2078]
[1741552589990,0.97614,2049.3,2049.0,4.18402]
[1741552590288,0.97616,2049.2,2049.0,4.18402]
[1741552590492,0.9809,2049.4,2049.0,4.18402]
[1741552590986,0.9809,2049.4,2049.0,3.2078]
[1741552591195,0.97616,2049.2,2049.0,4.18402]
[1741552591694,0.97614,2049.3,2049.1,0.97619]
[1741552591991,0.9809,2049.4,2049.0,3.2078]
[1741552592189,0.97621,2049.1,2049.0,3.2078]
[1741552592591,0.97617,2049.2,2049.0,4.18403]
[1741552593192,0.9809,2049.4,2049.1,0.97618]
[1741552593389,0.97616,2049.2,2049.1,0.97618]
[1741552593693,0.97614,2049.3,2049.1,0.97618]
[1741552594995,0.97614,2049.3,2049.2,0.97616]
[1741552595590,0.9946,2049.5,2049.2,0.97615]
[1741552595789,0.97611,2049.3,2049.2,0.97615]
[1741552595989,0.9946,2049.5,2049.0,3.2078]
[1741552596192,0.97613,2049.3,2049.2,0.97615]
[1741552596787,0.97613,2049.3,2049.0,3.2078]
[1741552597191,0.9946,2049.5,2049.1,0.97617]
[1741552597390,0.97616,2049.2,2049.1,0.97617]
[1741552597591,0.9946,2049.5,2049.0,3.2078]
[1741552597897,0.97621,2049.1,2049.0,3.2078]
[1741552599697,0.97621,2049.1,2049.0,4.18406]
[1741552600196,0.9946,2049.5,2049.3,0.9761]
[1741552600396,0.9761,2049.4,2049.2,0.97613]
[1741552600597,0.9946,2049.5,2049.2,0.97613]
[1741552600793,0.97611,2049.3,2049.2,0.97613]
[1741552601189,0.97615,2049.3,2049.1,0.97618]
[1741552601594,0.9946,2049.5,2049.0,3.2078]
[1741552601895,0.9946,2049.5,2049.2,0.97614]
[1741552602094,0.97611,2049.4,2049.3,0.97611]
[1741552602299,0.97611,2049.4,2049.2,0.97612]
[1741552602808,0.98290442,2049.6,2049.0,3.2078]
[1741552603102,2.44007,2049.5,2049.0,3.2078]
[1741552603398,0.98290442,2049.6,2049.0,3.2078]
[1741552603591,0.97613,2049.3,2049.2,0.97613]
[1741552604194,3.42285442,2049.6,2049.0,3.2078]
[1741552604397,0.97614,2049.3,2049.2,0.97615]
[1741552604605,3.42285442,2049.6,2049.0,3.2078]
[1741552604803,0.97615,2049.3,2049.2,0.97615]
[1741552605199,3.42285442,2049.6,2049.2,0.97615]
[1741552605504,0.97613,2049.3,2049.2,0.97614]
[1741552608110,0.98290442,2049.6,2049.0,5.64843]
[1741552608304,0.97608,2049.4,2049.3,0.97608]
[1741552609199,0.97613,2049.3,2049.2,0.97612]
[1741552609901,0.97621,2049.1,2049.0,3.2078]
[1741552611408,0.97621,2049.1,2049.0,4.18406]
[1741552611800,0.97617,2049.2,2049.1,0.97617]
[1741552613604,3.42293442,2049.6,2049.0,3.2078]
[1741552613807,0.97616,2049.3,2049.0,3.2078]
[1741552614212,0.97616,2049.3,2049.2,0.97616]
[1741552614617,0.97617,2049.2,2049.1,0.97618]
[1741552616312,0.97619,2049.2,2049.1,0.9762]
[1741552617109,0.97621,2049.1,2049.0,3.2078]
[1741552617309,1.94641,2049.1,2049.0,3.2078]
[1741552619417,1.94641,2049.1,2049.0,4.18406]
[1741552619915,1.94641,2049.1,2049.0,3.2078]
[1741552620117,0.9702,2049.1,2049.0,4.18406]
[1741552620317,5.5908,2049.4,2049.0,3.2078]
[1741552620318,3.2078,2049.4,2049.0,3.2078]
[1741552620613,0.00730442,2049.6,2049.5,0.97602]
[1741552623718,0.97577,2050.1,2049.9,0.9758]
[1741552623918,0.97577,2050.1,2050.0,3.2078]
[1741552624313,4.3253,2050.3,2050.0,3.2078]
[1741552624515,0.97572,2050.2,2050.0,4.18356]
[1741552624915,4.33260442,2050.3,2050.0,4.18356]
[1741552625115,0.97569,2050.2,2050.0,4.18356]
[1741552626117,0.97573,2050.1,2050.0,4.18356]
[1741552626318,0.97573,2050.1,2050.0,3.2078]
[1741552627416,0.97572,2050.2,2050.0,4.18354]
[1741552627614,1.94960442,2050.3,2050.0,3.2078]
[1741552627615,0.00730442,2050.3,2050.0,3.2078]
[1741552627919,0.00730442,2050.3,2050.2,0.97569]
[1741552628320,0.97555,2050.5,2050.1,1.0353]
[1741552628521,0.97555,2050.5,2050.4,3.2078]
[1741552629022,1.0055,2050.6,2050.1,1.0353]
[1741552629023,0.97562,2050.4,2050.2,0.97568]
[1741552629318,0.97565,2050.3,2050.1,5.2188]
[1741552629714,0.97430442,2050.5,2050.1,5.2188]
[1741552629915,0.97430442,2050.5,2050.1,4.2431]
[1741552630225,0.97562,2050.4,2050.2,0.97569]
[1741552630614,0.97561,2050.4,2050.2,0.97567]
[1741552631125,0.00730442,2050.5,2050.4,0.97559]
[1741552631426,0.00730442,2050.5,2050.4,4.18339]
[1741552632518,3.2078,2051.4,2050.4,7.2078]
[1741552632717,3.2078,2051.4,2051.1,3.2078]
[1741552632919,0.97521,2051.2,2051.1,3.2078]
[1741552633722,0.9753,2051.0,2050.9,0.00730442]
[1741552634123,0.97544,2050.8,2050.5,4.2215]
[1741552634322,3.2078,2051.0,2050.5,4.2215]
[1741552634323,0.97546,2050.7,2050.5,4.2215]
[1741552634524,0.97546,2050.7,2050.5,5.19704]
[1741552634824,0.97549,2050.6,2050.5,3.2078]
[1741552635024,0.97549,2050.7,2050.5,3.2078]
[1741552635221,0.97549,2050.6,2050.5,3.2078]
[1741552635421,1.95849,2050.6,2050.5,3.2078]
[1741552635818,2.02457,2051.1,2050.9,0.97533]
[1741552636015,1.95818,2051.3,2050.9,3.2078]
[1741552636221,0.983,2051.3,2051.2,4.18301]
[1741552636421,1.95816,2051.3,2051.2,3.2078]
[1741552636831,0.983,2051.3,2051.2,3.2078]
[1741552637026,1.06720442,2051.4,2051.2,3.2078]
[1741552637231,0.97516,2051.3,2051.2,3.2078]
[1741552637426,1.06720442,2051.4,2051.1,3.2078]
[1741552637625,2.04233442,2051.4,2051.2,0.97519]
[1741552637825,0.97519,2051.3,2051.1,4.18303]
[1741552638027,1.06720442,2051.4,2051.3,0.97516]
[1741552638329,1.06720442,2051.4,2051.1,3.2078]
[1741552638727,0.97518,2051.3,2051.1,4.18306]
[1741552638925,0.97518,2051.3,2051.1,3.2078]
[1741552639930,0.97518,2051.3,2051.1,4.18305]
[1741552640427,1.06720442,2051.4,2051.1,3.2078]
[1741552640630,0.97521,2051.2,2051.1,3.2078]
[1741552640828,1.06720442,2051.4,2051.2,0.97518]
[1741552641027,0.9752,2051.3,2051.1,3.2078]
[1741552641227,0.9752,2051.3,2051.1,4.18305]
[1741552641634,0.9752,2051.3,2051.1,3.2078]
[1741552641827,0.97521,2051.2,2051.1,3.2078]
[1741552643932,0.97532,2051.0,2050.8,7.56548]
[1741552644232,0.97535,2050.9,2050.8,3.2078]
[1741552644632,0.97547,2050.7,2050.5,4.18333]
[1741552644838,0.97547,2050.7,2050.5,3.2078]
[1741552645237,0.97539,2050.9,2050.6,0.97547]
[1741552645535,0.97542,2050.8,2050.6,0.97547]
[1741552645740,2.0713,2051.0,2050.5,4.18331]
[1741552646035,0.97545,2050.7,2050.5,3.2078]
[1741552646234,0.97549,2050.6,2050.5,3.2078]
[1741552647334,10.09543,2051.0,2050.5,3.2078]
[1741552647529,0.97549,2050.6,2050.5,3.2078]
[1741552648330,0.97559,2050.4,2050.3,0.00730442]
[1741552648742,1.0127,2050.5,2050.3,0.00730442]
[1741552649136,1.0127,2050.5,2050.3,0.98291442]
[1741552649344,0.97543,2050.8,2050.3,0.00730442]
[1741552649546,1.0127,2050.9,2050.7,0.97544]
[1741552649948,1.0127,2050.9,2050.6,3.2078]
[1741552650246,1.98805,2050.9,2050.6,3.2078]
[1741552650446,1.98805,2050.9,2050.8,0.9754]
[1741552650447,1.0127,2050.9,2050.8,0.9754]
[1741552650641,2.0064,2051.3,2051.1,0.97522]
[1741552650850,0.97521,2051.2,2051.0,4.18309]
[1741552651042,2.0064,2051.3,2051.0,3.2078]
[1741552651237,0.00730442,2051.4,2051.3,0.97516]
[1741552651545,3.2078,2052.0,2051.4,2.43779]
[1741552651848,3.2078,2052.0,2051.6,4.18281]
[1741552652046,0.9749,2051.9,2051.7,0.97497]
[1741552652850,0.97497,2051.7,2051.6,3.21510442]
[1741552653246,0.97494,2051.8,2051.6,4.19012442]
[1741552653443,3.21510442,2052.0,2051.6,3.21510442]
[1741552653849,0.00730442,2052.0,2051.9,0.97488]
[1741552654149,0.98213442,2052.0,2051.8,0.97489]
[1741552654345,0.00730442,2052.0,2051.8,0.97489]
[1741552654548,0.00730442,2052.0,2051.9,0.97488]
[1741552655355,0.00730442,2052.0,2051.9,4.18268]
[1741552657049,0.97465,2052.4,2052.2,0.9747]
[1741552657249,0.97464,2052.4,2052.3,0.97465]
[1741552657457,2.0832,2052.5,2052.3,0.97465]
[1741552657758,0.97464,2052.4,2052.2,4.1825]
[1741552658058,0.97464,2052.4,2052.2,3.2078]
[1741552658352,0.97464,2052.4,2052.2,4.1825]
[1741552658652,0.97469,2052.3,2052.2,3.2078]
[1741552660452,2.09050442,2052.5,2052.2,3.2078]
[1741552660657,0.98193442,2052.5,2052.2,4.18251]
[1741552660954,0.97469,2052.3,2052.2,3.2078]
[1741552661349,0.97468,2052.4,2052.2,3.2078]
[1741552661552,0.00730442,2052.5,2052.2,3.2078]
[1741552661755,0.97469,2052.3,2052.2,3.2078]
[1741552662458,0.00730442,2052.5,2052.3,0.97465]
[1741552662659,0.00730442,2052.5,2052.3,1.97677]
[1741552663158,0.98189442,2052.5,2052.3,1.0021]
[1741552663546,0.00730442,2052.5,2052.3,1.0021]
[1741552663856,0.98193442,2052.5,2052.3,1.0021]
[1741552664555,0.00730442,2052.5,2052.4,0.97464]
[1741552665450,5.5828,2053.2,2052.9,0.97439]
[1741552665657,4.18207,2053.2,2053.0,0.97435]
[1741552665849,2.375,2053.4,2052.7,3.2078]
[1741552666055,0.97426,2053.2,2053.1,4.18209]
[1741552666254,3.0554,2053.5,2053.2,0.97424]
[1741552666462,0.97418,2053.4,2053.3,0.97421]
[1741552666655,0.97422,2053.3,2053.2,0.97425]
[1741552666959,0.97426,2053.2,2053.1,3.21510442]
[1741552667662,0.97424,2053.3,2053.1,4.18939442]
[1741552667855,3.0554,2053.5,2053.1,3.21510442]
[1741552668359,0.97425,2053.3,2053.1,4.18939442]
[1741552668560,0.97424,2053.3,2053.1,4.18939442]
[1741552668952,0.97426,2053.2,2053.1,3.21510442]
[1741552669155,3.0554,2053.5,2053.1,4.18941442]
[1741552669359,3.0554,2053.5,2053.1,3.21510442]
[1741552669560,0.97426,2053.2,2053.1,3.21510442]
[1741552669954,0.97426,2053.2,2053.1,0.00730442]
[1741552670155,4.18206,2053.2,2053.1,0.00730442]
[1741552671758,4.18206,2053.2,2052.7,2.375]
[1741552671759,9.5818,2053.2,2052.5,4.2561]
[1741552672058,0.97454,2052.6,2052.5,3.2078]
[1741552672960,1.9852,2052.8,2052.3,0.00730442]
[1741552673161,0.97464,2052.4,2052.3,0.00730442]
[1741552674062,1.99250442,2052.8,2052.3,0.00730442]
[1741552674355,0.00730442,2052.8,2052.7,0.9745]
[1741552674552,0.98179442,2052.8,2052.6,0.97451]
[1741552674752,0.97454,2052.7,2052.5,4.18237]
[1741552674961,0.00730442,2052.8,2052.5,3.2078]
[1741552675159,0.97454,2052.6,2052.5,3.2078]
[1741552675659,2.44345442,2052.8,2052.3,0.00730442]
[1741552675958,0.97464,2052.4,2052.3,0.00730442]
[1741552676560,8.62130534,2052.4,2051.6,3.2078]
[1741552676758,0.97508,2051.5,2051.3,3.2078]
[1741552677058,2.373,2051.8,2051.3,3.2078]
[1741552677261,0.97511,2051.4,2051.3,3.2078]
[1741552678961,3.21510442,2051.6,2051.3,3.2078]
[1741552679166,0.97517,2051.3,2051.1,1.95173442]
[1741552679465,3.21510442,2051.6,2051.1,1.95173442]
[1741552679657,0.00730442,2051.6,2051.1,0.97650442]
[1741552680057,5.65270442,2051.6,2051.1,0.00730442]
[1741552680458,0.97521,2051.2,2051.1,0.00730442]
[1741552680958,0.00730442,2051.6,2051.1,0.00730442]
[1741552681160,0.97511,2051.4,2051.3,3.2078]
[1741552681562,3.21510442,2051.6,2051.1,0.00730442]
[1741552681759,0.97521,2051.2,2051.1,0.00730442]
[1741552683066,0.97544,2050.8,2050.5,0.97554]
[1741552683272,3.34834,2051.0,2050.7,3.2078]
[1741552683467,2.373,2051.0,2050.7,3.2078]
[1741552683664,0.9754,2050.8,2050.7,3.2078]
[1741552683967,0.97557,2050.5,2050.4,3.2078]
[1741552684571,0.97564,2050.3,2050.2,0.00730442]
[1741552684971,0.97563,2050.4,2050.2,0.00730442]
[1741552685166,0.00730442,2050.5,2050.2,0.00730442]
[1741552685669,0.97564,2050.3,2050.2,0.00730442]
[1741552686259,1.96541,2050.4,2050.2,0.00730442]
[1741552686770,0.00730442,2050.5,2050.4,0.97559]
[1741552687073,0.97525,2051.2,2050.9,0.97533]
[1741552687264,5.5818,2051.6,2050.7,5.5818]
[1741552687469,0.97518,2051.3,2051.1,0.97524]
[1741552687773,0.97523,2051.2,2051.0,0.97529]
[1741552688268,0.00730442,2051.3,2051.2,0.97521]
[1741552690872,0.97471,2052.3,2051.5,2.43756]
[1741552691067,5.64408,2052.7,2051.5,2.43756]
[1741552691068,0.97473,2052.2,2052.1,3.2078]
[1741552691667,0.97482,2052.1,2051.8,4.1827]
[1741552691872,3.21510442,2052.4,2051.9,0.00730442]
[1741552692264,0.97483,2052.0,2051.9,0.00730442]
[1741552692464,3.21510442,2052.4,2051.9,0.00730442]
[1741552692863,0.97483,2052.0,2051.9,0.00730442]
[1741552694969,2.94573,2052.0,2051.9,0.00730442]
[1741552695568,0.97502,2051.6,2051.5,3.2078]
[1741552696071,2.373,2052.2,2051.5,3.2078]
[1741552696370,0.96040442,2052.4,2051.9,3.2078]
[1741552696674,0.97483,2052.0,2051.9,3.2078]
[1741552696871,0.9749,2051.9,2051.7,2.373]
[1741552697176,0.97492,2051.8,2051.7,2.373]
[1741552697674,0.00730442,2052.4,2051.7,6.373]
[1741552697864,0.00730442,2052.4,2052.3,4.18249]
[1741552698066,0.9611,2053.0,2052.3,3.2078]
[1741552698266,0.9611,2053.0,2052.7,3.2078]
[1741552698470,3.3439,2053.1,2052.7,3.2078]
[1741552698669,0.97445,2052.8,2052.7,3.2078]
[1741552698876,3.3439,2053.1,2052.4,4.176]
[1741552699374,0.97453,2052.7,2052.5,0.00730442]
[1741552699568,0.97454,2052.6,2052.5,0.00730442]
[1741552700269,0.00730442,2053.0,2052.5,0.00730442]
[1741552700475,0.97454,2052.6,2052.5,0.00730442]
[1741552701679,4.18234,2052.6,2052.5,0.00730442]
[1741552701875,5.17624,2052.6,2052.5,0.00730442]
[1741552702773,0.97481,2052.1,2051.8,4.18271]
[1741552702980,0.9748,2052.1,2051.9,0.97486]
[1741552703180,2.0364,2052.5,2051.8,3.2078]
[1741552703479,2.0364,2052.5,2051.9,0.97487]
[1741552703675,2.0364,2052.5,2051.8,3.2078]
[1741552703874,2.0364,2052.5,2052.1,3.2078]
[1741552704086,0.97473,2052.3,2052.1,3.2078]
[1741552704476,0.97466,2052.4,2052.1,3.2078]
[1741552704687,3.2078,2052.6,2052.1,3.2078]
[1741552704877,2.372,2052.8,2052.4,3.2078]
[1741552705484,8.01597,2052.8,2052.1,6.5739]
[1741552705780,0.97461,2052.5,2052.3,0.97465]
[1741552705982,0.9746,2052.5,2052.4,3.2078]
[1741552707183,2.372,2052.8,2052.1,3.3661]
[1741552707184,0.97472,2052.3,2052.1,7.54868]
[1741552707374,0.9993,2052.7,2052.1,6.5739]
[1741552707575,0.97467,2052.4,2052.1,7.54864]
[1741552707776,0.97467,2052.4,2052.2,0.9747]
[1741552708282,0.9993,2052.7,2052.1,6.5739]
[1741552708471,0.9396,2052.9,2052.4,3.2078]
[1741552708675,0.00730442,2053.0,2052.9,0.9744]
[1741552708985,0.97416,2053.5,2052.9,4.3567]
[1741552709178,4.2269,2053.7,2053.3,3.2078]
[1741552709179,1.0191,2053.7,2053.3,3.2078]
[1741552709374,0.9993,2054.1,2053.6,3.2078]
[1741552709583,3.2078,2054.2,2053.6,3.2078]
[1741552709787,3.2078,2054.2,2053.6,4.18183]
[1741552709982,0.97397,2053.9,2053.7,0.98130442]
[1741552710181,0.00730442,2054.1,2053.8,0.97394]
[1741552710384,0.97393,2053.9,2053.7,0.98130442]
[1741552710580,0.9739,2054.0,2053.8,0.97397]
[1741552710982,0.98115442,2054.1,2053.9,4.18173]
[1741552711284,0.97388,2054.0,2053.9,3.2078]
[1741552713482,0.97397,2053.8,2053.7,0.00730442]
[1741552715686,0.97397,2053.8,2053.3,4.18199]
[1741552715687,0.97416,2053.4,2053.3,3.2078]
[1741552716188,0.97441,2052.9,2052.6,5.5778]
[1741552716386,0.97442,2052.9,2052.7,0.97448]
[1741552716588,0.97444,2052.9,2052.6,5.5778]
[1741552716783,2.43554,2053.3,2052.6,3.2078]
[1741552716988,0.9745,2052.7,2052.6,3.21510442]
[1741552717792,0.9745,2052.7,2052.6,0.00730442]
[1741552718182,4.81329442,2053.0,2052.3,3.2078]
[1741552718479,2.4363,2052.7,2052.0,3.2078]
[1741552718682,0.97479,2052.1,2052.0,3.2078]
[1741552718883,5.64434,2052.5,2051.9,1.97976]
[1741552719095,0.97483,2052.0,2051.9,1.0049]
[1741552719285,3.2078,2052.2,2051.7,3.2078]
[1741552719485,0.9749,2051.9,2051.7,0.00730442]
[1741552719879,2.369,2052.1,2051.7,0.00730442]
[1741552719880,2.369,2052.1,2051.7,0.98226442]
[1741552720081,5.5768,2052.1,2051.7,0.00730442]
[1741552720283,1.0206,2052.0,2051.1,3.2078]
[1741552720487,0.97519,2051.3,2051.1,3.2078]
[1741552720684,0.97521,2051.2,2051.1,3.2078]
[1741552721586,0.97528,2051.1,2050.9,0.00730442]
[1741552722187,0.97521,2051.2,2050.9,0.98262442]
[1741552722387,2.37,2051.3,2050.9,0.00730442]
[1741552722593,0.97521,2051.2,2051.1,3.2078]
[1741552723293,3.34518,2051.3,2051.1,3.2078]
[1741552723487,3.21510442,2051.4,2050.9,0.00730442]
[1741552723795,0.9753,2051.0,2050.9,0.00730442]
[1741552724090,0.97529,2051.1,2050.9,0.00730442]
[1741552724292,0.97524,2051.2,2050.9,0.98264442]
[1741552724494,0.97525,2051.2,2050.9,0.00730442]
[1741552724796,0.97526,2051.1,2050.9,0.98264442]
[1741552725095,0.97525,2051.2,2050.9,0.98264442]
[1741552725291,0.9753,2051.0,2050.9,0.00730442]
[1741552725794,0.00730442,2051.4,2050.9,0.00730442]
[1741552726091,0.97523,2051.2,2051.1,3.2078]
[1741552726297,0.00730442,2051.4,2051.1,3.2078]
[1741552726493,0.97517,2051.3,2051.1,3.2078]
[1741552726690,0.00730442,2051.4,2051.1,3.2078]
[1741552726888,0.98244442,2051.4,2051.1,3.2078]
[1741552727194,0.98245442,2051.4,2051.1,4.18305]
[1741552727392,0.00730442,2051.4,2051.1,3.2078]
[1741552727895,0.9752,2051.3,2051.1,3.2078]
[1741552728295,0.00730442,2051.4,2051.1,3.2078]
[1741552728891,0.98244442,2051.4,2051.1,4.18303]
[1741552729997,0.98244442,2051.4,2051.1,3.2078]
[1741552730197,0.00730442,2051.4,2051.1,4.18302]
[1741552730394,0.98244442,2051.4,2051.1,3.2078]
[1741552730696,0.97521,2051.2,2051.1,3.2078]
[1741552732396,0.00730442,2051.4,2050.9,0.00730442]
[1741552732397,0.9753,2051.0,2050.9,0.00730442]
[1741552734596,0.97554,2050.5,2050.4,3.2078]
[1741552734998,4.80829,2051.0,2050.4,3.2078]
[1741552735194,0.97554,2050.6,2050.4,3.2078]
[1741552735400,0.97554,2050.6,2050.4,4.18339]
[1741552735605,3.2078,2050.9,2050.4,3.2078]
[1741552735802,3.2078,2050.9,2050.0,0.992]
[1741552735803,0.97565,2050.3,2050.1,4.18352]
[1741552736003,0.9756,2050.4,2050.2,0.97567]
[1741552736305,3.34551,2050.6,2050.4,0.97558]
[1741552736502,0.97556,2050.5,2050.3,0.97562]
[1741552736809,2.37,2050.6,2050.3,0.97562]
[1741552736999,0.97555,2050.5,2050.3,0.97562]
[1741552737305,0.97555,2050.5,2050.2,0.97566]
[1741552737306,0.97556,2050.5,2050.2,0.97566]
[1741552737706,0.97559,2050.4,2050.2,0.97566]
[1741552738107,0.97564,2050.3,2050.1,3.2078]
[1741552738300,0.97564,2050.3,2050.1,4.18351]
[1741552738600,0.97564,2050.3,2050.1,4.1835]
[1741552739703,2.37,2050.6,2050.1,3.2078]
[1741552739905,0.97565,2050.3,2050.1,4.18351]
[1741552740410,0.97569,2050.2,2050.1,3.2078]
[1741552740599,2.37,2050.6,2049.8,7.54726]
[1741552740600,0.9758,2050.0,2049.8,7.54726]
[1741552740905,0.97567,2050.3,2050.0,0.97574]
[1741552741104,0.00730442,2050.4,2049.9,0.97581]
[1741552741400,0.97575,2050.1,2049.9,0.97581]
[1741552741610,2.4391,2050.3,2049.8,4.2014]
[1741552741795,0.00730442,2050.4,2049.8,4.2014]
[1741552741999,0.97583,2049.9,2049.8,3.2078]
[1741552742199,2.44633442,2050.4,2049.8,4.18366]
[1741552742401,0.97583,2049.9,2049.8,3.2078]
[1741552742600,0.97581,2050.0,2049.8,3.2078]
[1741552742801,0.97581,2050.0,2049.8,4.18367]
[1741552743102,2.43915,2050.3,2049.8,3.2078]
[1741552743301,0.97581,2050.0,2049.8,4.18367]
[1741552744299,0.97576,2050.1,2049.9,0.97583]
[1741552744503,0.97578,2050.1,2049.8,4.18364]
[1741552744700,0.97579,2050.0,2049.8,4.18364]
[1741552745704,2.44633442,2050.4,2049.8,4.18364]
[1741552745705,0.97564,2050.3,2049.8,5.64746]
[1741552745899,0.98291442,2050.4,2050.2,3.2078]
[1741552746103,0.97564,2050.3,2050.2,3.2078]
[1741552746297,0.98290442,2050.4,2050.2,3.2078]
[1741552746499,0.00730442,2050.4,2050.3,0.97564]
[1741552746707,0.00730442,2050.4,2050.2,3.2078]
[1741552746904,0.00730442,2050.4,2050.3,0.97564]
[1741552747809,3.34627,2051.1,2051.0,0.9753]
[1741552748109,2.371,2051.3,2051.0,0.97527]
[1741552748607,2.371,2051.3,2051.0,3.2078]
[1741552748803,2.0094,2051.5,2051.0,3.2078]
[1741552748999,0.97525,2051.2,2051.0,4.18309]
[1741552749199,0.97525,2051.2,2051.1,0.97526]
[1741552749404,0.97525,2051.2,2051.0,4.18307]
[1741552749600,0.97524,2051.2,2051.0,4.18307]
[1741552749906,0.00730442,2051.4,2051.0,3.2078]
[1741552750103,0.00730442,2051.4,2051.3,3.2078]
[1741552750606,0.98241442,2051.4,2051.3,3.2078]
[1741552750809,0.98241442,2051.4,2051.0,4.18308]
[1741552750810,0.97524,2051.2,2051.0,4.18308]
[1741552751111,0.97526,2051.1,2051.0,3.2078]
[1741552751608,0.97524,2051.2,2051.0,4.1831]
[1741552751806,0.97526,2051.1,2051.0,3.2078]
[1741552752410,0.00730442,2051.4,2051.0,3.2078]
[1741552752706,0.97519,2051.3,2051.1,0.97524]
[1741552752910,0.97519,2051.3,2051.0,3.2078]
[1741552752911,0.00730442,2051.4,2051.0,3.2078]
[1741552753106,0.97522,2051.2,2051.0,4.18307]
[1741552753409,0.97525,2051.2,2051.0,4.18307]
[1741552753811,0.97526,2051.1,2051.0,4.18307]
[1741552754005,0.97526,2051.1,2051.0,3.2078]
[1741552754405,0.97526,2051.1,2051.0,4.1831]
[1741552754702,0.97526,2051.1,2051.0,3.2078]
[1741552756005,0.9753,2051.0,2050.9,0.00730442]
[1741552759015,4.80798,2051.3,2050.9,0.00730442]
[1741552759210,0.9753,2051.0,2050.9,0.00730442]
[1741552760010,6.43837,2051.0,2050.5,0.97553]
[1741552760211,0.97546,2050.7,2050.5,0.97553]
[1741552760407,0.97554,2050.6,2050.4,4.18337]
[1741552760917,0.97554,2050.6,2050.5,0.97554]
[1741552761118,0.97548,2050.7,2050.5,0.97554]
[1741552761313,0.97548,2050.7,2050.4,3.2078]
[1741552761521,0.97546,2050.7,2050.4,3.2078]
[1741552761720,0.97546,2050.7,2050.5,0.97551]
[1741552762220,2.9605,2050.9,2050.4,3.2078]
[1741552762415,0.97554,2050.5,2050.4,3.2078]
[1741552762719,0.97554,2050.6,2050.4,3.2078]
[1741552762918,5.39891,2050.9,2050.4,3.2078]
[1741552762919,0.97554,2050.5,2050.4,3.2078]
[1741552763120,0.97565,2050.3,2050.1,1.989]
[1741552763321,0.97563,2050.4,2050.2,0.97567]
[1741552763523,2.43874,2050.6,2050.1,1.0395]
[1741552763711,3.2078,2050.6,2050.0,3.2078]
[1741552763916,0.97573,2050.1,2050.0,3.2078]
[1741552764324,0.97595,2049.7,2049.5,5.1412]
[1741552764522,0.97593,2049.7,2049.5,4.18379]
[1741552764922,0.97597,2049.6,2049.5,3.2078]
[1741552766219,2.047,2050.0,2049.5,3.2078]
[1741552766518,0.97588,2049.8,2049.5,3.2078]
[1741552766724,0.97588,2049.8,2049.5,4.18378]
[1741552766925,0.97588,2049.8,2049.5,3.2078]
[1741552767126,0.97588,2049.8,2049.6,0.97596]
[1741552767425,0.97588,2049.8,2049.5,3.2078]
[1741552767627,0.97586,2049.9,2049.5,3.2078]
[1741552767828,0.97586,2049.9,2049.6,0.97595]
[1741552768014,2.047,2050.0,2049.5,3.2078]
[1741552768214,0.97589,2049.8,2049.5,4.18379]
[1741552768420,2.047,2050.0,2049.5,3.2078]
[1741552768623,0.97589,2049.8,2049.6,0.97595]
[1741552769132,0.97597,2049.6,2049.5,3.2078]
[1741552770519,4.80884,2049.7,2049.1,0.97619]
[1741552770830,0.97613,2049.3,2049.1,0.97619]
[1741552771129,0.97615,2049.3,2049.0,5.14144]
[1741552771324,4.80884,2049.7,2049.1,0.97619]
[1741552771529,0.97609,2049.4,2049.1,0.97619]
[1741552771726,0.97609,2049.4,2049.0,4.1652]
[1741552771925,0.97609,2049.4,2049.1,0.97621]
[1741552772123,0.97609,2049.4,2049.0,4.1652]
[1741552772428,0.97609,2049.4,2049.2,0.97616]
[1741552772830,0.97609,2049.4,2049.0,4.1652]
[1741552773034,0.97614,2049.3,2049.0,5.14142]
[1741552773331,0.9761,2049.4,2049.1,0.9762]
[1741552773527,3.2078,2049.6,2049.1,0.9762]
[1741552773832,0.97614,2049.3,2049.1,0.9762]
[1741552774424,0.9761,2049.4,2049.1,0.9762]
[1741552774627,1.0257,2049.5,2049.1,0.9762]
[1741552774831,0.97621,2049.1,2049.0,3.2078]